[Event "19th IPCA WCC 2019"]
[Site "Ruzomberok"]
[Date "2019.07.02"]
[Round "5.19"]
[White "Zicho, Anton"]
[Black "Korber, Antonin"]
[Result "1-0"]
[ECO "C00"]
[WhiteElo "1662"]
[BlackElo "1759"]
[Annotator "NA"]
[PlyCount "51"]
[EventDate "2019.06.28"]
[EventType "swiss"]
[EventCountry "SVK"]
[SourceTitle "playchess.com"]
[Source "ChessBase"]
[SourceQuality "1"]
[TimeControl "5400+30"]

1. e4 {[%emt 0:03:31]} e6 {[%emt 0:00:00]} 2. d4 {[%emt 0:00:32]} c5 {[%emt 0:00:00]} 3. c3 {[%emt 0:02:07]} b6 {[%emt 0:00:41]} 4. Bd3 {[%emt 0:01:46]} Bb7 {[%emt 0:00:29]} 5. Nf3 {[%emt 0:01:07]} Ne7 {[%emt 0:00:44]} 6. Bg5 {[%emt 0:01:45]} f6 {[%emt 0:00:21]} 7. Be3 {[%emt 0:04:26]} cxd4 {[%emt 0:00:10]} 8. cxd4 {[%emt 0:01:21]} Ng6 {[%emt 0:00:16]} 9. Nbd2 {[%emt 0:03:05]} Be7 {[%emt 0:00:26]} 10. O-O {[%emt 0:03:16]} Ba6 {[%emt 0:00:41]} 11. Qe2 {[%emt 0:02:21]} Bxd3 {[%emt 0:00:17]} 12. Qxd3 {[%emt 0:00:10]} O-O {[%emt 0:00:50]} 13. d5 {[%emt 0:00:56]} Ne5 {[%emt 0:10:07]} 14. Nxe5 {[%emt 0:01:54]} fxe5 15. d6 Bf6 {[%emt 0:02:26]} 16. Rac1 {[%emt 0:06:18]} Nc6 {[%emt 0:00:27]} 17. a3 {[%emt 0:01:04]} Bg5 {[%emt 0:02:41]} 18. Rc3 {[%emt 0:03:33]} Bxe3 {[%emt 0:01:32]} 19. Qxe3 {[%emt 0:00:29]} b5 {[%emt 0:02:09]} 20. Rfc1 {[%emt 0:01:33]} Qf6 {[%emt 0:03:17]} 21. f3 {[%emt 0:07:42]} Qf4 {[%emt 0:06:33]} 22. Qd3 {[%emt 0:02:15]} a5 {[%emt 0:08:10]} 23. Nb3 {[%emt 0:12:25]} Rfb8 {[%emt 0:09:44]} 24. Nc5 {[%emt 0:01:43]} Ra7 {[%emt 0:00:24]} 25. Nxe6 {[%emt 0:02:34]} Qf6 {[%emt 0:10:12]} 26. Qd5 {[%emt 0:02:02]} 1-0

[Event "19th IPCA WCC 2019"]
[Site "Ruzomberok"]
[Date "2019.07.02"]
[Round "5.21"]
[White "Konkolova, Nikola"]
[Black "Wollner, Bohus"]
[Result "1-0"]
[ECO "C42"]
[WhiteElo "1518"]
[BlackElo "1222"]
[Annotator "NA"]
[PlyCount "29"]
[EventDate "2019.06.28"]
[EventType "swiss"]
[EventCountry "SVK"]
[SourceTitle "playchess.com"]
[Source "ChessBase"]
[SourceQuality "1"]
[TimeControl "5400+30"]

1. e4 {[%emt 0:00:00]} e5 {[%emt 0:01:05]} 2. Nf3 {[%emt 0:00:00]} Nf6 {[%emt 0:00:24]} 3. Nc3 {[%emt 0:00:44]} Bb4 {[%emt 0:00:34]} 4. a3 {[%emt 0:00:52]} Bxc3 {[%emt 0:02:54]} 5. dxc3 {[%emt 0:00:12]} c5 {[%emt 0:00:37]} 6. Bg5 {[%emt 0:03:00]} d6 {[%emt 0:03:37]} 7. Bb5+ {[%emt 0:02:04]} Bd7 {[%emt 0:01:05]} 8. Bxd7+ {[%emt 0:00:30]} Nbxd7 {[%emt 0:00:22]} 9. Qxd6 {[%emt 0:01:04]} Qb6 {[%emt 0:07:07]} 10. Qxb6 {[%emt 0:00:16]} axb6 {[%emt 0:00:24]} 11. Bxf6 {[%emt 0:00:36]} Nxf6 {[%emt 0:00:38]} 12. O-O {[%emt 0:03:08]} Nd7 {[%emt 0:00:09]} 13. Rad1 {[%emt 0:00:27]} Rd8 {[%emt 0:00:33]} 14. Rd5 {[%emt 0:00:40]} O-O {[%emt 0:00:16]} 15. Rfd1 {[%emt 0:00:42]} 1-0

[Event "19th IPCA WCC 2019"]
[Site "Ruzomberok"]
[Date "2019.07.02"]
[Round "5.22"]
[White "Frumin, Rebeka"]
[Black "Engel, Katalin"]
[Result "1-0"]
[ECO "C10"]
[WhiteElo "1398"]
[BlackElo "1537"]
[Annotator "NA"]
[PlyCount "133"]
[EventDate "2019.06.28"]
[EventType "swiss"]
[EventCountry "SVK"]
[SourceTitle "playchess.com"]
[Source "ChessBase"]
[SourceQuality "1"]
[TimeControl "5400+30"]

1. e4 {[%emt 0:00:00]} e6 {[%emt 0:00:00]} 2. d4 {[%emt 0:00:28]} d5 {[%emt 0:00:00]} 3. Nc3 {[%emt 0:00:58]} c5 {[%emt 0:00:00]} 4. Bb5+ {[%emt 0:00:50]} Nc6 {[%emt 0:00:03]} 5. exd5 {[%emt 0:01:38]} exd5 {[%emt 0:00:18]} 6. Qe2+ {[%emt 0:01:51]} Be6 {[%emt 0:00:09]} 7. Nf3 {[%emt 0:01:23]} a6 {[%emt 0:00:14]} 8. Bxc6+ {[%emt 0:00:25]} bxc6 {[%emt 0:00:12]} 9. O-O {[%emt 0:01:57]} c4 {[%emt 0:01:41]} 10. Ng5 {[%emt 0:01:50]} Qd7 {[%emt 0:00:40]} 11. Re1 {[%emt 0:01:15]} Be7 {[%emt 0:01:17]} 12. Nxe6 {[%emt 0:01:00]} fxe6 {[%emt 0:00:15]} 13. Qxe6 {[%emt 0:02:02]} Qxe6 {[%emt 0:00:16]} 14. Rxe6 {[%emt 0:00:09]} Kd7 {[%emt 0:01:28]} 15. Re2 {[%emt 0:00:41]} Nf6 {[%emt 0:00:26]} 16. Na4 {[%emt 0:01:42]} Rab8 {[%emt 0:00:31]} 17. Bf4 {[%emt 0:01:50]} Rb4 {[%emt 0:01:19]} 18. b3 {[%emt 0:01:37]} cxb3 {[%emt 0:01:03]} 19. cxb3 {[%emt 0:00:26]} Rxd4 {[%emt 0:00:23]} 20. Be5 {[%emt 0:01:38]} Rb4 {[%emt 0:04:20]} 21. Rae1 {[%emt 0:01:54]} Re8 {[%emt 0:02:49]} 22. Nb2 {[%emt 0:06:13]} Rg4 {[%emt 0:04:28]} 23. f3 {[%emt 0:03:45]} Rg5 {[%emt 0:01:12]} 24. Nd3 {[%emt 0:02:20]} h5 {[%emt 0:03:19]} 25. Bf4 {[%emt 0:00:34]} Rf5 {[%emt 0:01:20]} 26. Bg3 {[%emt 0:05:56]} g5 {[%emt 0:00:55]} 27. Ne5+ {[%emt 0:00:23]} Kd6 {[%emt 0:03:22]} 28. Ng6+ {[%emt 0:00:41]} Kd7 {[%emt 0:01:28]} 29. Nxe7 {[%emt 0:00:14]} Rxe7 {[%emt 0:01:11]} 30. Rxe7+ {[%emt 0:00:13]} Kd8 {[%emt 0:00:25]} 31. R7e5 {[%emt 0:01:24]} Rxe5 {[%emt 0:00:42]} 32. Rxe5 {[%emt 0:00:16]} h4 {[%emt 0:00:58]} 33. Bf2 {[%emt 0:00:16]} Nh7 {[%emt 0:02:07]} 34. Bc5 {[%emt 0:01:04]} a5 {[%emt 0:00:38]} 35. Bb6+ {[%emt 0:00:11]} Kd7 {[%emt 0:00:08]} 36. Bxa5 {[%emt 0:00:07]} Kd6 {[%emt 0:00:09]} 37. Re2 {[%emt 0:00:29]} Nf8 {[%emt 0:00:17]} 38. Rc2 {[%emt 0:00:38]} Ne6 {[%emt 0:00:17]} 39. Bd2 {[%emt 0:00:42]} Nd4 {[%emt 0:00:29]} 40. Bb4+ {[%emt 0:00:47]} Ke5 {[%emt 0:00:25]} 41. Rd2 {[%emt 0:00:17]} h3 {[%emt 0:00:31]} 42. Bd6+ {[%emt 0:00:17]} Kxd6 {[%emt 0:00:32]} 43. Rxd4 {[%emt 0:00:07]} hxg2 {[%emt 0:00:16]} 44. Kxg2 {[%emt 0:00:06]} c5 {[%emt 0:00:16]} 45. Rd1 {[%emt 0:00:12]} Ke5 {[%emt 0:00:17]} 46. Kg3 {[%emt 0:00:13]} c4 {[%emt 0:00:34]} 47. bxc4 {[%emt 0:00:12]} dxc4 {[%emt 0:00:05]} 48. a4 {[%emt 0:00:17]} c3 {[%emt 0:00:04]} 49. Rc1 {[%emt 0:00:05]} Kd4 {[%emt 0:00:06]} 50. a5 {[%emt 0:00:12]} Kd3 {[%emt 0:00:05]} 51. a6 {[%emt 0:00:09]} Kd2 {[%emt 0:00:04]} 52. Rxc3 {[%emt 0:00:10]} Kxc3 {[%emt 0:00:06]} 53. a7 {[%emt 0:00:04]} Kd4 {[%emt 0:00:06]} 54. a8=Q {[%emt 0:00:10]} Kc5 {[%emt 0:00:13]} 55. Qb7 {[%emt 0:00:10]} Kd6 {[%emt 0:00:06]} 56. Kg4 {[%emt 0:00:12]} Kc5 {[%emt 0:00:15]} 57. Kf5 {[%emt 0:00:21]} Kd4 {[%emt 0:00:12]} 58. Qc6 {[%emt 0:00:16]} g4 {[%emt 0:00:13]} 59. fxg4 {[%emt 0:00:14]} Ke3 {[%emt 0:00:06]} 60. Qc4 {[%emt 0:00:23]} Kf3 {[%emt 0:00:14]} 61. Qd3+ {[%emt 0:00:21]} Kg2 {[%emt 0:00:10]} 62. Qe3 {[%emt 0:00:35]} Kf1 {[%emt 0:00:14]} 63. Qd2 {[%emt 0:00:46]} Kg1 {[%emt 0:00:06]} 64. Qe2 {[%emt 0:00:16]} Kh1 {[%emt 0:00:06]} 65. Kf4 {[%emt 0:00:13]} Kg1 {[%emt 0:00:07]} 66. Kg3 {[%emt 0:00:09]} Kh1 {[%emt 0:00:09]} 67. Qg2# {[%emt 0:00:09]} 1-0

[Event "19th IPCA WCC 2019"]
[Site "Ruzomberok"]
[Date "2019.07.03"]
[Round "6.1"]
[White "Babula, Milan"]
[Black "Yarmonov, Igor"]
[Result "1-0"]
[ECO "B18"]
[WhiteElo "2220"]
[BlackElo "2389"]
[Annotator "NA"]
[PlyCount "97"]
[EventDate "2019.06.28"]
[EventType "swiss"]
[EventCountry "SVK"]
[SourceTitle "playchess.com"]
[Source "ChessBase"]
[SourceQuality "1"]
[TimeControl "5400+30"]

1. e4 {[%emt 0:00:00]} c6 {[%emt 0:00:00]} 2. d4 {[%emt 0:00:00]} d5 {[%emt 0:00:05]} 3. Nc3 {[%emt 0:00:00]} dxe4 {[%emt 0:00:58]} 4. Nxe4 {[%emt 0:00:00]} Bf5 {[%emt 0:00:30]} 5. Ng3 {[%emt 0:00:12]} Bg6 {[%emt 0:00:04]} 6. N1e2 {[%emt 0:00:48]} e6 {[%emt 0:00:15]} 7. Nf4 {[%emt 0:00:55]} Bd6 {[%emt 0:00:39]} 8. c3 {[%emt 0:06:22]} Ne7 {[%emt 0:05:22]} 9. h4 {[%emt 0:05:45]} Nd7 {[%emt 0:04:59]} 10. h5 {[%emt 0:07:10]} Bf5 {[%emt 0:00:24]} 11. Nxf5 {[%emt 0:05:58]} Nxf5 {[%emt 0:01:06]} 12. Bd3 {[%emt 0:00:29]} Qc7 {[%emt 0:00:46]} 13. Qf3 {[%emt 0:03:09]} O-O-O {[%emt 0:00:32]} 14. Bd2 {[%emt 0:16:29]} Ne7 {[%emt 0:01:03]} 15. Ne2 {[%emt 0:02:44]} f5 {[%emt 0:10:41]} 16. O-O-O {[%emt 0:13:32]} e5 {[%emt 0:16:57]} 17. Bxf5 {[%emt 0:02:46]} Nxf5 {[%emt 0:00:39]} 18. Qxf5 {[%emt 0:00:03]} Rhf8 {[%emt 0:00:03]} 19. Qg4 {[%emt 0:01:46]} Rxf2 {[%emt 0:02:33]} 20. Rhf1 {[%emt 0:02:02]} Rxf1 {[%emt 0:02:40]} 21. Rxf1 {[%emt 0:00:02]} Rf8 {[%emt 0:00:27]} 22. Rxf8+ {[%emt 0:05:20]} Bxf8 {[%emt 0:02:02]} 23. Be1 {[%emt 0:01:31]} exd4 {[%emt 0:11:41]} 24. Nxd4 {[%emt 0:00:38]} Qe5 {[%emt 0:00:16]} 25. Bd2 {[%emt 0:02:24]} a6 {[%emt 0:20:19]} 26. a4 {[%emt 0:01:59]} Bd6 {[%emt 0:02:49]} 27. Nf5 {[%emt 0:04:01]} Bf8 {[%emt 0:00:18]} 28. Ne3 {[%emt 0:01:53]} Qf6 {[%emt 0:01:49]} 29. Nc4 {[%emt 0:00:57]} Qf7 {[%emt 0:02:43]} 30. a5 {[%emt 0:06:29]} g6 {[%emt 0:02:27]} 31. hxg6 {[%emt 0:00:42]} hxg6 {[%emt 0:00:16]} 32. Nb6+ {[%emt 0:00:27]} Kc7 {[%emt 0:02:04]} 33. Nxd7 {[%emt 0:01:54]} Qxd7 {[%emt 0:00:03]} 34. Qxg6 {[%emt 0:00:07]} Bd6 {[%emt 0:01:22]} 35. g4 {[%emt 0:00:25]} Be5 {[%emt 0:01:28]} 36. Qe4 {[%emt 0:01:06]} Qd6 {[%emt 0:01:13]} 37. Be3 {[%emt 0:01:30]} Qf6 {[%emt 0:02:15]} 38. Kc2 {[%emt 0:00:06]} Kd7 {[%emt 0:01:43]} 39. g5 {[%emt 0:03:32]} Qe6 {[%emt 0:01:06]} 40. Qh7+ {[%emt 0:01:08]} Kc8 {[%emt 0:00:10]} 41. Qe4 {[%emt 0:00:52]} Kd7 {[%emt 0:00:10]} 42. Qd3+ {[%emt 0:00:41]} Ke8 {[%emt 0:00:52]} 43. Bc5 {[%emt 0:01:24]} Kf7 {[%emt 0:01:08]} 44. Be3 {[%emt 0:01:39]} Qg4 {[%emt 0:00:46]} 45. b4 {[%emt 0:00:33]} Qg2+ {[%emt 0:00:57]} 46. Kb3 {[%emt 0:00:23]} Qg4 {[%emt 0:01:48]} 47. Qh7+ {[%emt 0:00:54]} Ke6 {[%emt 0:00:10]} 48. Qg6+ {[%emt 0:00:10]} Kd7 {[%emt 0:00:51]} 49. Qf7+ {[%emt 0:00:08]} 1-0

[Event "19th IPCA WCC 2019"]
[Site "Ruzomberok"]
[Date "2019.07.03"]
[Round "6.2"]
[White "Gurbanov, Andrei"]
[Black "Mukha, Nikolay"]
[Result "0-1"]
[ECO "A61"]
[WhiteElo "2300"]
[BlackElo "2159"]
[Annotator "NA"]
[PlyCount "64"]
[EventDate "2019.06.28"]
[EventType "swiss"]
[EventCountry "SVK"]
[SourceTitle "playchess.com"]
[Source "ChessBase"]
[SourceQuality "1"]
[TimeControl "5400+30"]

1. d4 {[%emt 0:00:00]} Nf6 {[%emt 0:00:00]} 2. c4 {[%emt 0:00:00]} c5 {[%emt 0:00:20]} 3. d5 {[%emt 0:00:00]} e6 {[%emt 0:00:11]} 4. Nc3 {[%emt 0:00:00]} exd5 {[%emt 0:00:16]} 5. cxd5 {[%emt 0:00:02]} d6 {[%emt 0:00:16]} 6. Nf3 {[%emt 0:00:46]} g6 {[%emt 0:00:02]} 7. Nd2 {[%emt 0:00:39]} Bg7 {[%emt 0:01:06]} 8. e4 {[%emt 0:00:43]} O-O {[%emt 0:00:16]} 9. Bd3 {[%emt 0:00:11]} b6 {[%emt 0:03:56]} 10. O-O {[%emt 0:03:12]} Ng4 {[%emt 0:07:33]} 11. h3 {[%emt 0:09:37]} Ne5 {[%emt 0:00:25]} 12. Be2 {[%emt 0:00:15]} Ba6 {[%emt 0:02:09]} 13. f4 {[%emt 0:06:15]} Nd3 {[%emt 0:01:57]} 14. Bxd3 {[%emt 0:00:31]} Bxd3 {[%emt 0:01:35]} 15. Rf3 {[%emt 0:00:36]} c4 {[%emt 0:02:10]} 16. Kh1 {[%emt 0:24:36]} Nd7 {[%emt 0:01:22]} 17. Re3 {[%emt 0:08:58]} b5 {[%emt 0:13:19]} 18. Nf3 {[%emt 0:01:58]} b4 {[%emt 0:00:53]} 19. Ne2 {[%emt 0:02:40]} Re8 {[%emt 0:00:41]} 20. Ng3 {[%emt 0:03:10]} Nc5 {[%emt 0:03:02]} 21. Qe1 {[%emt 0:01:03]} c3 {[%emt 0:01:29]} 22. e5 {[%emt 0:01:53]} dxe5 {[%emt 0:01:45]} 23. Nxe5 {[%emt 0:05:14]} Qxd5 {[%emt 0:00:43]} 24. bxc3 {[%emt 0:00:41]} bxc3 {[%emt 0:09:46]} 25. Qxc3 {[%emt 0:01:43]} Rac8 {[%emt 0:06:33]} 26. Qe1 {[%emt 0:03:26]} Ba6 {[%emt 0:10:09]} 27. Ba3 {[%emt 0:07:05]} Nd3 {[%emt 0:04:21]} 28. Nxd3 {[%emt 0:10:25]} Rxe3 {[%emt 0:00:27]} 29. Qxe3 {[%emt 0:00:08]} Bxa1 {[%emt 0:01:02]} 30. Nf2 {[%emt 0:02:44]} Bb7 {[%emt 0:03:20]} 31. Nfe4 {[%emt 0:01:37]} f5 {[%emt 0:01:44]} 32. Qe1 {[%emt 0:02:12]} Bg7 {[%emt 0:00:33]} 0-1

[Event "19th IPCA WCC 2019"]
[Site "Ruzomberok"]
[Date "2019.07.03"]
[Round "6.3"]
[White "Tebenkov, Vladislav"]
[Black "Shashikant, Kutwal"]
[Result "1-0"]
[ECO "B53"]
[WhiteElo "2096"]
[BlackElo "2176"]
[Annotator "NA"]
[PlyCount "81"]
[EventDate "2019.06.28"]
[EventType "swiss"]
[EventCountry "SVK"]
[SourceTitle "playchess.com"]
[Source "ChessBase"]
[SourceQuality "1"]
[TimeControl "5400+30"]

1. e4 {[%emt 0:00:00]} c5 {[%emt 0:00:00]} 2. Nf3 {[%emt 0:00:00]} d6 {[%emt 0:00:00]} 3. d4 {[%emt 0:00:00]} cxd4 {[%emt 0:00:05]} 4. Qxd4 {[%emt 0:00:00]} e5 {[%emt 0:01:18]} 5. Bb5+ {[%emt 0:01:53]} Nd7 {[%emt 0:00:26]} 6. Bxd7+ {[%emt 0:05:04]} Bxd7 {[%emt 0:06:02]} 7. Qd3 {[%emt 0:00:16]} Rc8 {[%emt 0:09:24]} 8. Nc3 {[%emt 0:03:16]} h6 {[%emt 0:05:25]} 9. Be3 {[%emt 0:07:02]} Nf6 {[%emt 0:03:55]} 10. Nd2 {[%emt 0:07:10]} Qc7 {[%emt 0:11:43]} 11. f3 {[%emt 0:13:36]} a6 {[%emt 0:02:23]} 12. O-O {[%emt 0:05:57]} Be7 {[%emt 0:00:37]} 13. Bf2 {[%emt 0:02:57]} O-O {[%emt 0:02:26]} 14. Rfd1 {[%emt 0:06:30]} b5 {[%emt 0:11:21]} 15. a3 {[%emt 0:05:18]} Be6 {[%emt 0:20:20]} 16. Nf1 {[%emt 0:00:36]} Bc4 {[%emt 0:06:07]} 17. Qd2 {[%emt 0:00:23]} a5 {[%emt 0:02:41]} 18. Ne3 {[%emt 0:02:56]} b4 {[%emt 0:00:21]} 19. axb4 {[%emt 0:05:03]} axb4 {[%emt 0:00:01]} 20. Na2 {[%emt 0:01:58]} b3 {[%emt 0:00:41]} 21. cxb3 {[%emt 0:00:59]} Bxb3 {[%emt 0:00:20]} 22. Rdc1 {[%emt 0:00:10]} Qb7 {[%emt 0:00:31]} 23. Nc3 {[%emt 0:02:30]} Qb4 {[%emt 0:00:46]} 24. Nf5 {[%emt 0:00:53]} Rfe8 {[%emt 0:01:27]} 25. Bh4 {[%emt 0:06:24]} Kh7 {[%emt 0:02:04]} 26. Bxf6 {[%emt 0:04:38]} Bxf6 {[%emt 0:00:03]} 27. Qxd6 {[%emt 0:00:12]} Qb7 {[%emt 0:00:47]} 28. Qa6 {[%emt 0:02:58]} Qxa6 {[%emt 0:02:58]} 29. Rxa6 {[%emt 0:00:04]} Bg5 {[%emt 0:00:16]} 30. Rca1 {[%emt 0:01:02]} Rb8 {[%emt 0:00:30]} 31. h4 {[%emt 0:03:45]} Bd8 {[%emt 0:01:37]} 32. Kh2 {[%emt 0:01:55]} g6 {[%emt 0:02:14]} 33. Nd6 {[%emt 0:00:57]} Re6 {[%emt 0:00:02]} 34. Nd5 {[%emt 0:04:29]} Bxh4 {[%emt 0:00:56]} 35. Nxf7 {[%emt 0:00:24]} Bxd5 {[%emt 0:03:43]} 36. exd5 {[%emt 0:00:06]} Re7 {[%emt 0:00:42]} 37. Ra7 {[%emt 0:00:38]} Kg7 {[%emt 0:00:44]} 38. Nxe5 {[%emt 0:00:35]} Rxb2 {[%emt 0:00:25]} 39. Rxe7+ {[%emt 0:01:18]} Bxe7 {[%emt 0:00:02]} 40. Ra7 {[%emt 0:00:07]} Kf6 {[%emt 0:00:40]} 41. Ng4+ {[%emt 0:00:08]} 1-0

[Event "19th IPCA WCC 2019"]
[Site "Ruzomberok"]
[Date "2019.07.03"]
[Round "6.4"]
[White "Nowak, Lukasz"]
[Black "Zavarsky, Juraj"]
[Result "1-0"]
[ECO "B32"]
[WhiteElo "2267"]
[BlackElo "2000"]
[Annotator "NA"]
[PlyCount "71"]
[EventDate "2019.06.28"]
[EventType "swiss"]
[EventCountry "SVK"]
[SourceTitle "playchess.com"]
[Source "ChessBase"]
[SourceQuality "1"]
[TimeControl "5400+30"]

1. e4 {[%emt 0:03:52]} c5 {[%emt 0:00:00]} 2. Nf3 {[%emt 0:00:08]} Nc6 {[%emt 0:01:09]} 3. d4 {[%emt 0:00:16]} cxd4 {[%emt 0:00:06]} 4. Nxd4 {[%emt 0:00:05]} Qb6 {[%emt 0:02:22]} 5. Nb3 {[%emt 0:00:50]} e6 {[%emt 0:03:03]} 6. Nc3 {[%emt 0:02:09]} Bb4 {[%emt 0:05:19]} 7. Bd2 {[%emt 0:00:33]} Nf6 {[%emt 0:01:15]} 8. Bd3 {[%emt 0:00:26]} Ne5 {[%emt 0:03:06]} 9. O-O {[%emt 0:01:37]} Nxd3 {[%emt 0:02:47]} 10. cxd3 {[%emt 0:00:09]} d5 {[%emt 0:14:33]} 11. exd5 {[%emt 0:08:12]} O-O {[%emt 0:16:00]} 12. Be3 {[%emt 0:12:40]} Qd8 {[%emt 0:03:22]} 13. dxe6 {[%emt 0:06:10]} Bxe6 {[%emt 0:00:32]} 14. Bg5 {[%emt 0:00:14]} h6 {[%emt 0:02:09]} 15. Bh4 {[%emt 0:00:44]} g5 {[%emt 0:05:28]} 16. Bg3 {[%emt 0:01:00]} Bf5 {[%emt 0:03:12]} 17. d4 {[%emt 0:00:31]} Bg4 {[%emt 0:02:33]} 18. Qd3 {[%emt 0:01:51]} Re8 {[%emt 0:04:34]} 19. Rfe1 {[%emt 0:00:59]} Qd7 {[%emt 0:00:38]} 20. h4 {[%emt 0:10:24]} b6 {[%emt 0:06:51]} 21. hxg5 {[%emt 0:00:52]} hxg5 {[%emt 0:00:01]} 22. Re5 {[%emt 0:01:08]} Rxe5 {[%emt 0:01:59]} 23. Bxe5 {[%emt 0:00:09]} Nh7 {[%emt 0:05:27]} 24. Ne4 {[%emt 0:04:00]} Bf5 {[%emt 0:01:55]} 25. Qf3 {[%emt 0:01:18]} Bxe4 {[%emt 0:01:51]} 26. Qxe4 {[%emt 0:00:08]} Rc8 {[%emt 0:02:28]} 27. Rc1 {[%emt 0:03:51]} Rxc1+ {[%emt 0:02:51]} 28. Nxc1 {[%emt 0:00:19]} f5 {[%emt 0:02:26]} 29. Qc2 {[%emt 0:01:23]} Be7 {[%emt 0:01:10]} 30. Ne2 {[%emt 0:01:46]} Bf6 {[%emt 0:04:04]} 31. Ng3 {[%emt 0:01:46]} Bxe5 {[%emt 0:00:16]} 32. dxe5 {[%emt 0:00:07]} f4 {[%emt 0:01:24]} 33. Nh5 {[%emt 0:02:00]} Kf8 {[%emt 0:00:40]} 34. Qg6 {[%emt 0:01:01]} Qf7 {[%emt 0:00:30]} 35. Qh6+ {[%emt 0:00:51]} Ke8 {[%emt 0:00:42]} 36. Qxh7 {[%emt 0:00:13]} 1-0

[Event "19th IPCA WCC 2019"]
[Site "Ruzomberok"]
[Date "2019.07.03"]
[Round "6.5"]
[White "Juvan, Jaka"]
[Black "Alekseev, Mikhail"]
[Result "0-1"]
[ECO "B15"]
[WhiteElo "2168"]
[BlackElo "1869"]
[Annotator "NA"]
[PlyCount "96"]
[EventDate "2019.06.28"]
[EventType "swiss"]
[EventCountry "SVK"]
[SourceTitle "playchess.com"]
[Source "ChessBase"]
[SourceQuality "1"]
[TimeControl "5400+30"]

1. e4 {[%emt 0:00:00]} c6 {[%emt 0:00:00]} 2. d4 {[%emt 0:00:00]} d5 {[%emt 0:00:00]} 3. Nc3 {[%emt 0:00:00]} a6 {[%emt 0:00:21]} 4. Nf3 {[%emt 0:02:00]} Bg4 {[%emt 0:00:10]} 5. Be2 {[%emt 0:01:09]} e6 {[%emt 0:00:14]} 6. O-O {[%emt 0:01:48]} Nf6 {[%emt 0:00:23]} 7. exd5 {[%emt 0:03:06]} cxd5 {[%emt 0:00:35]} 8. Ne5 {[%emt 0:01:03]} Bxe2 {[%emt 0:01:10]} 9. Nxe2 {[%emt 0:00:33]} Nc6 {[%emt 0:01:45]} 10. f4 {[%emt 0:03:18]} Bd6 {[%emt 0:03:12]} 11. Ng3 {[%emt 0:02:54]} Qc7 {[%emt 0:05:01]} 12. Be3 {[%emt 0:04:25]} h5 {[%emt 0:03:38]} 13. Rc1 {[%emt 0:23:53]} b5 {[%emt 0:12:16]} 14. a4 {[%emt 0:06:26]} g6 {[%emt 0:10:48]} 15. Rf3 {[%emt 0:05:33]} Ng4 {[%emt 0:06:59]} 16. Kh1 {[%emt 0:03:43]} Nxe3 {[%emt 0:05:38]} 17. Rxe3 {[%emt 0:00:08]} Bxe5 {[%emt 0:03:42]} 18. fxe5 {[%emt 0:01:07]} h4 {[%emt 0:04:04]} 19. Ne2 {[%emt 0:00:08]} Ne7 {[%emt 0:00:51]} 20. Rc3 {[%emt 0:01:23]} Qd7 {[%emt 0:01:13]} 21. axb5 {[%emt 0:00:55]} axb5 {[%emt 0:01:02]} 22. Rb3 {[%emt 0:02:11]} O-O {[%emt 0:03:50]} 23. Nf4 {[%emt 0:05:26]} Nf5 {[%emt 0:01:28]} 24. Qg4 {[%emt 0:00:58]} Kh7 {[%emt 0:05:35]} 25. g3 {[%emt 0:09:41]} hxg3 {[%emt 0:02:52]} 26. hxg3 {[%emt 0:00:55]} Rh8 {[%emt 0:01:04]} 27. Kg2 {[%emt 0:04:01]} Kg7 {[%emt 0:01:39]} 28. Ne2 {[%emt 0:06:17]} Rh5 {[%emt 0:05:34]} 29. Rh1 {[%emt 0:01:30]} Rxh1 {[%emt 0:02:28]} 30. Kxh1 {[%emt 0:00:01]} Rh8+ {[%emt 0:00:15]} 31. Kg1 {[%emt 0:00:12]} Rc8 {[%emt 0:00:50]} 32. Nc3 {[%emt 0:02:01]} Rc4 {[%emt 0:01:13]} 33. Nxb5 {[%emt 0:01:12]} Rxc2 {[%emt 0:00:21]} 34. Qd1 {[%emt 0:00:11]} Rc4 {[%emt 0:04:00]} 35. g4 {[%emt 0:00:51]} Qc6 {[%emt 0:01:00]} 36. Qd3 {[%emt 0:01:05]} Nxd4 {[%emt 0:01:26]} 37. Nxd4 {[%emt 0:00:21]} Qc5 {[%emt 0:00:12]} 38. Kg2 {[%emt 0:02:02]} Rxd4 {[%emt 0:00:24]} 39. Qf3 {[%emt 0:00:23]} Qe7 {[%emt 0:03:02]} 40. Rb7 {[%emt 0:00:16]} Rxg4+ {[%emt 0:01:18]} 41. Qxg4 {[%emt 0:00:22]} Qxb7 {[%emt 0:00:03]} 42. Qg5 {[%emt 0:00:32]} Qxb2+ {[%emt 0:00:39]} 43. Kg1 {[%emt 0:00:04]} Qb1+ {[%emt 0:00:26]} 44. Kg2 {[%emt 0:00:02]} Qe4+ {[%emt 0:00:18]} 45. Kg1 {[%emt 0:00:06]} Qf5 {[%emt 0:00:28]} 46. Qe3 {[%emt 0:00:28]} g5 {[%emt 0:00:17]} 47. Qc3 {[%emt 0:01:33]} Qg4+ {[%emt 0:00:43]} 48. Kh1 {[%emt 0:00:22]} Qc4 {[%emt 0:00:13]} 0-1